fUSD/lending_fUSD_20260401
["ID","MTS","AMOUNT","RATE_DAILY","PERIOD"]
[419251248,1775052640620,-398.23705892,0.00012145,2]
[419251249,1775052640631,-1096.199,0.00012145,2]
[419251250,1775052640672,-12327.65506717,0.00012145,2]
[419251251,1775052640728,-1177.24407235,0.00012145,2]
[419251252,1775052640783,-84400.00000005,0.00012145,2]
[419251253,1775052640901,-315.26571518,0.00012145,2]
[419251254,1775052640912,-2923.80028505,0.00012145,2]
[419251311,1775052642268,-1137.5,0.00012145,2]
[419251312,1775052642281,-1435.87614288,0.00012145,2]
[419251313,1775052642421,-6214.9429633,0.00012145,2]
[419251314,1775052642469,-393.51575662,0.00012145,2]
[419251320,1775052643376,-3031.75376585,0.00012145,2]
[419251321,1775052643589,-18279.82519698,0.00012145,2]
[419251322,1775052643697,-90987.25847348,0.00012145,2]
[419251325,1775052646121,-682.69,0.00012145,2]
[419251326,1775052646442,-3332.67720999,0.00012145,2]
[419251327,1775052646603,-11726.19303097,0.00012145,2]
[419251339,1775052662513,493.43,5e-05,2]
[419251341,1775052910902,214.0,5e-05,3]
[419251343,1775052992132,-156.39595107,0.00011395,2]
[419251344,1775052992157,-1289.2648,0.00011396,2]
[419251345,1775052992180,-600.0,0.00011444,2]
[419251346,1775052992202,-500.0,0.00011473,2]
[419251347,1775052992226,-500.0,0.00011473,2]
[419251348,1775052992248,-1200.0,0.00011494,2]
[419251349,1775052992271,-300.0,0.00011494,2]
[419251350,1775052992295,-300.0,0.00011494,2]
[419251351,1775052992320,-500.0,0.00011495,2]
[419251352,1775052992343,-500.0,0.00011495,2]
[419251353,1775052992366,-185.93880346,0.00011495,2]
[419251354,1775052992388,-607.83267266,0.00011495,2]
[419251355,1775052992412,-167.97931115,0.00011495,2]
[419251356,1775052992436,-500.0,0.00011495,2]
[419251357,1775052992459,-494.06400442,0.00011495,2]
[419251358,1775052992482,-500.0,0.00011495,2]
[419251359,1775052992505,-500.0,0.00011495,2]
[419251360,1775052992528,-500.0,0.00011495,2]
[419251361,1775052992553,-234.41672158,0.00011495,2]
[419251362,1775052992578,-8464.10773566,0.00011496,2]
[419251363,1775053239745,-2500.0,0.00011396,2]
[419251364,1775053239767,-218.02,0.0001144,2]
[419251365,1775053239789,-500.0,0.00011473,2]
[419251366,1775053239811,-500.0,0.00011473,2]
[419251367,1775053239833,-500.0,0.00011473,2]
[419251368,1775053239855,-500.0,0.00011473,2]
[419251369,1775053239879,-500.0,0.00011473,2]
[419251370,1775053239902,-500.0,0.00011473,2]
[419251371,1775053239925,-240.0,0.00011481,2]
[419251372,1775053239950,-9046.98,0.00011482,2]
[419251410,1775053832167,-535.24964994,0.00011157,2]
[419251411,1775053832178,-964.75035006,0.00011157,2]
[419251412,1775053832188,-600.0,0.00011211,2]
[419251413,1775053832197,-600.0,0.00011258,2]
[419251414,1775053832206,-600.0,0.00011258,2]
[419251415,1775053832215,-4849.874,0.00011266,2]
[419251416,1775053832224,-249.493,0.00011266,2]
[419251417,1775053832234,-166.66,0.00011338,2]
[419251418,1775053832243,-15360.3943,0.00011396,2]
[419251419,1775053832253,-2500.0,0.00011396,2]
[419251420,1775053832264,-5227.28043739,0.00011396,2]
[419251421,1775053832272,-9137.42497927,0.00011396,2]
[419251422,1775053832283,-721.31253995,0.00011396,2]
[419251423,1775053832291,-505.73499567,0.00011473,2]
[419251424,1775053832302,-500.0,0.00011473,2]
[419251425,1775053832311,-550.62298341,0.00011473,2]
[419251426,1775053832320,-500.0,0.00011473,2]
[419251427,1775053832330,-500.0,0.00011473,2]
[419251428,1775053832339,-500.0,0.00011489,2]
[419251429,1775053832351,-500.0,0.00011489,2]
[419251430,1775053832360,-200.0,0.00011489,2]
[419251431,1775053832370,-500.0,0.00011489,2]
[419251432,1775053832379,-500.0,0.00011489,2]
[419251433,1775053832388,-500.0,0.00011489,2]
[419251434,1775053832398,-500.0,0.00011489,2]
[419251435,1775053832407,-500.0,0.00011489,2]
[419251436,1775053832416,-500.0,0.00011489,2]
[419251437,1775053832425,-500.0,0.00011489,2]
[419251438,1775053832434,-500.0,0.00011489,2]
[419251439,1775053832443,-500.0,0.00011489,2]
[419251440,1775053832452,-151.0,0.00011489,2]
[419251441,1775053832462,-151.0,0.00011489,2]
[419251443,1775053832471,-151.0,0.00011489,2]
[419251445,1775053832480,-151.0,0.00011489,2]
[419251446,1775053832490,-151.0,0.00011489,2]
[419251447,1775053832499,-500.0,0.00011489,2]
[419251448,1775053832507,-151.0,0.00011489,2]
[419251449,1775053832517,-500.0,0.00011489,2]
[419251450,1775053832526,-151.0,0.00011489,2]
[419251451,1775053832535,-500.0,0.00011489,2]
[419251452,1775053832545,-151.0,0.00011489,2]
[419251453,1775053832554,-500.0,0.00011489,2]
[419251454,1775053832564,-151.0,0.00011489,2]
[419251455,1775053832573,-151.0,0.00011489,2]
[419251457,1775053832582,-151.0,0.00011489,2]
[419251458,1775053832592,-151.0,0.00011489,2]
[419251459,1775053832601,-151.0,0.00011489,2]
[419251461,1775053832611,-151.0,0.00011489,2]
[419251464,1775053832622,-151.0,0.00011489,2]
[419251465,1775053832632,-151.0,0.00011489,2]
[419251466,1775053832642,-151.0,0.00011489,2]
[419251467,1775053832651,-151.0,0.00011489,2]
[419251468,1775053832661,-151.0,0.00011489,2]
[419251469,1775053832671,-151.0,0.00011489,2]
[419251470,1775053832680,-151.0,0.00011489,2]
[419251471,1775053832689,-151.0,0.00011489,2]
[419251472,1775053832699,-151.0,0.00011489,2]
[419251473,1775053832708,-151.0,0.00011489,2]
[419251474,1775053832716,-151.0,0.00011489,2]
[419251475,1775053833051,-151.0,0.00011489,2]
[419251476,1775053833061,-151.0,0.00011489,2]
[419251477,1775053833071,-151.0,0.00011489,2]
[419251478,1775053833082,-151.0,0.00011489,2]
[419251479,1775053833091,-151.0,0.00011489,2]
[419251480,1775053833101,-151.0,0.00011489,2]
[419251481,1775053833110,-151.0,0.00011489,2]
[419251482,1775053833120,-500.0,0.00011489,2]
[419251483,1775053833129,-500.0,0.00011495,2]
[419251484,1775053833138,-545.8448031,0.00011495,2]
[419251485,1775053833148,-716291.00666434,0.00011496,2]
[419251486,1775053833158,-151.0,0.00011496,2]
[419251487,1775053833168,-252.19076826,0.00011496,2]
[419251488,1775053833178,-150.0,0.000115,2]
[419251489,1775053833187,-166.66,0.00011713,2]
[419251490,1775053833197,-212.0,0.00011735,2]
[419251491,1775053833206,-317.49661556,0.00011751,2]
[419251492,1775053833215,-295.0,0.00011759,2]
[419251493,1775053833224,-165.03946855,0.00011763,2]
[419251494,1775053833233,-209.0,0.00011791,2]
[419251495,1775053833242,-159.0,0.00011814,2]
[419251496,1775053833252,-706.0,0.00011821,2]
[419251497,1775053833260,-451.0,0.00011838,2]
[419251498,1775053833270,-1722.0,0.00011844,2]
[419251499,1775053833279,-1720.0,0.00011868,2]
[419251500,1775053833287,-9137.42497926,0.00011896,2]
[419251501,1775053833296,-955.36257404,0.00012025,2]
[419251502,1775053833306,-128106.53871111,0.0001203,2]
[419251503,1775053833316,-200.0,0.00012037,2]
[419251504,1775053833326,-5227.28043734,0.00012039,2]
[419251505,1775053833336,-1000.0,0.00012045,2]
[419251506,1775053833346,-166.66,0.00012087,2]
[419251507,1775053833355,-30673.44294804,0.00012125,2]
[419251508,1775053833372,-748.00966555,0.00012125,2]
[419251509,1775053833388,-1606.72727158,0.00012125,2]
[419251510,1775053833401,-1998.50742485,0.00012125,2]
[419251511,1775053833413,-3640.59180879,0.00012125,2]
[419251512,1775053833424,-308.29206342,0.00012125,2]
[419251513,1775053833439,-12124.90390716,0.00012125,2]
[419251514,1775053833450,-346.84803172,0.00012125,2]
[419251515,1775053833461,-456.50541151,0.00012125,2]
[419251516,1775053833513,-1127.54480993,0.00012125,2]
[419251517,1775053833524,-927.69623708,0.00012125,2]
[419251520,1775053838334,-172.41137655,0.00011717,2]
[419251521,1775053838345,-721.31253993,0.00011896,2]
[419251522,1775053838354,-471.16553641,0.00012125,2]
[419251523,1775053838366,-1554.53461667,0.00012125,2]
[419251524,1775053838393,-5580.23600097,0.00012125,2]
[419251525,1775053838405,-17554.57430046,0.00012125,2]
[419251526,1775053838427,-5155.157013,0.00012125,2]
[419251527,1775053838439,-2773.11623008,0.00012125,2]
[419251528,1775053838463,-4997.812,0.00012125,2]
[419251529,1775053838574,-1028.42167164,0.00012125,2]
[419251530,1775053838585,-1407.27216267,0.00012125,2]
[419251532,1775053840470,-415.0,0.00011396,2]
[419251533,1775053840999,-585.0,0.00011396,2]
[419251534,1775053841009,-534.65056896,0.00012125,2]
[419251552,1775053843936,-1153.567646,0.00012125,2]
[419251553,1775053846439,-2575.31934776,0.00012125,2]
[419251554,1775053846451,-525.82293081,0.00012125,2]
[419251555,1775053846483,-4296.75088854,0.00012125,2]
[419251556,1775053846536,-36033.07617234,0.00012125,2]
[419251557,1775053846593,-1059.84061726,0.00012125,2]
[419251558,1775053846604,-6545.97767769,0.00012125,2]
[419251559,1775053888382,1888.0,8.356e-05,2]
[419251563,1775054086312,-369.0,0.00010798,2]
[419251566,1775054368557,3639.18104569,0.000101,20]
[419251568,1775054794715,169.29,5.411e-05,2]
[419251569,1775054795194,169.29,8.116e-05,2]
[419251570,1775054860787,319.54,7.87e-05,2]
[419251571,1775055003812,-350.0,9.426e-05,2]
[419251573,1775055032309,-200.0,9.426e-05,2]
[419251574,1775055032319,-250.0,9.706e-05,2]
[419251575,1775055032328,-1225.51726259,9.987e-05,2]
[419251576,1775055032340,-555.59417147,9.987e-05,2]
[419251577,1775055032418,-278.37265992,9.987e-05,2]
[419251578,1775055032429,-258.61657008,9.988e-05,2]
[419251579,1775055032441,-41.38342992,9.988e-05,2]
[419251580,1775055032453,-300.0,9.988e-05,2]
[419251581,1775055032463,-300.0,9.988e-05,2]
[419251582,1775055032472,-1200.0,9.988e-05,2]
[419251583,1775055032482,-300.0,9.988e-05,2]
[419251584,1775055032492,-166.31698668,9.988e-05,2]
[419251585,1775055032502,-211.0,9.989e-05,2]
[419251586,1775055032512,-211.0,9.989e-05,2]
[419251587,1775055032522,-211.0,9.989e-05,2]
[419251588,1775055032532,-211.0,9.989e-05,2]
[419251589,1775055032542,-211.0,9.989e-05,2]
[419251590,1775055032553,-211.0,9.989e-05,2]
[419251591,1775055032563,-211.0,9.989e-05,2]
[419251592,1775055032573,-211.0,9.989e-05,2]
[419251593,1775055032583,-211.0,9.989e-05,2]
[419251594,1775055032594,-680.13,0.00010177,2]
[419251595,1775055032604,-721.9,0.00010316,2]
[419251596,1775055032614,-250.0,0.00010368,2]
[419251597,1775055032624,-250.0,0.00010368,2]
[419251598,1775055032635,-1852.42,0.00010374,2]
[419251599,1775055032645,-166.31698667,0.00010422,2]
[419251600,1775055032655,-155.0,0.00010736,2]
[419251601,1775055032666,-1084.0,0.00010759,2]
[419251602,1775055032676,-401.0,0.00010798,2]
[419251603,1775055032685,-572.0,0.00010821,2]
[419251604,1775055032694,-3972.22,0.00010821,2]
[419251605,1775055032704,-169.29,0.00010821,2]
[419251606,1775055032714,-2724.0,0.000109,5]
[419251607,1775055032724,-166.31698667,0.00010956,2]
[419251608,1775055032733,-150.0,0.00010985,2]
[419251609,1775055032743,-600.0,0.00010986,2]
[419251610,1775055032752,-300.0,0.00010986,2]
[419251611,1775055032767,-300.0,0.00010986,2]
[419251612,1775055032778,-420.0,0.00010987,2]
[419251613,1775055032789,-1680.0,0.00010987,2]
[419251614,1775055032798,-28674.65728278,0.00011014,2]
[419251615,1775055034457,-2554.15876802,0.00011014,2]
[419251616,1775055034469,-4817.8924492,0.00011014,2]
[419251617,1775055034480,-500.0,0.00011056,2]
[419251618,1775055034489,-630.8,0.00011066,2]
[419251619,1775055034498,-254.62952472,0.00011087,2]
[419251620,1775055034509,-167.91283259,0.00011087,2]
[419251621,1775055034519,-1488.61704411,0.00011087,2]
[419251622,1775055034534,-2490.97794187,0.00011087,2]
[419251623,1775055034548,-7416.8866712,0.00011087,2]
[419251624,1775055034557,-1032.93729294,0.00011087,2]
[419251625,1775055034567,-500.0,0.00011114,2]
[419251626,1775055034577,-500.0,0.00011114,2]
[419251627,1775055034587,-330.83967565,0.00011114,2]
[419251628,1775055034596,-500.0,0.00011114,2]
[419251629,1775055034605,-156.78867168,0.00011114,2]
[419251630,1775055034614,-500.0,0.00011114,2]
[419251631,1775055034624,-520.28767977,0.00011114,2]
[419251632,1775055034635,-11640.66419494,0.00011185,2]
[419251633,1775055034644,-500.0,0.00011186,2]
[419251634,1775055034654,-500.0,0.00011186,2]
[419251635,1775055034663,-500.0,0.00011186,2]
[419251636,1775055034672,-500.0,0.00011186,2]
[419251637,1775055034682,-500.12556099,0.00011186,2]
[419251638,1775055034692,-500.0,0.00011186,2]
[419251639,1775055034701,-500.0,0.00011186,2]
[419251640,1775055034711,-500.0,0.00011186,2]
[419251641,1775055034720,-500.0,0.00011186,2]
[419251642,1775055034734,-180.48159571,0.00011186,2]
[419251643,1775055034745,-500.0,0.00011186,2]
[419251644,1775055034755,-500.0,0.00011186,2]
[419251645,1775055034765,-500.0,0.00011186,2]
[419251646,1775055034774,-314.33925126,0.00011186,2]
[419251647,1775055034784,-500.0,0.00011186,2]
[419251648,1775055034794,-500.0,0.00011186,2]
[419251649,1775055034804,-469.98753121,0.00011186,2]
[419251650,1775055034814,-500.0,0.00011186,2]
[419251651,1775055034824,-500.82839147,0.00011186,2]
[419251652,1775055034834,-184.48088041,0.00011186,2]
[419251653,1775055034843,-500.0,0.00011186,2]
[419251654,1775055034853,-500.0,0.00011186,2]
[419251655,1775055034862,-500.0,0.00011186,2]
[419251656,1775055034871,-500.0,0.00011186,2]
[419251657,1775055034881,-500.0,0.00011186,2]
[419251658,1775055034891,-500.0,0.00011186,2]
[419251659,1775055034900,-500.0,0.00011186,2]
[419251660,1775055034910,-500.0,0.00011186,2]
[419251661,1775055034920,-500.0,0.00011186,2]
[419251662,1775055034929,-500.0,0.00011186,2]
[419251663,1775055034939,-244.30892546,0.00011186,2]
[419251664,1775055034948,-500.0,0.00011186,2]
[419251665,1775055034958,-500.0,0.00011186,2]
[419251666,1775055034968,-500.0,0.00011186,2]
[419251667,1775055034977,-500.0,0.00011186,2]
[419251668,1775055034987,-500.0,0.00011186,2]
[419251669,1775055034996,-500.0,0.00011186,2]
[419251670,1775055035006,-500.0,0.00011186,2]
[419251671,1775055035015,-500.0,0.00011186,2]
[419251672,1775055035025,-500.0,0.00011186,2]
[419251673,1775055035034,-500.0,0.00011186,2]
[419251674,1775055035044,-500.0,0.00011186,2]
[419251675,1775055035054,-500.0,0.00011186,2]
[419251676,1775055035063,-500.0,0.00011186,2]
[419251677,1775055035073,-500.0,0.00011186,2]
[419251678,1775055035082,-500.0,0.00011186,2]
[419251679,1775055035091,-500.0,0.00011186,2]
[419251680,1775055035101,-500.0,0.00011186,2]
[419251681,1775055035111,-500.0,0.00011186,2]
[419251682,1775055035120,-500.0,0.00011186,2]
[419251683,1775055035130,-500.0,0.00011186,2]
[419251684,1775055035140,-500.0,0.00011186,2]
[419251685,1775055035150,-500.0,0.00011186,2]
[419251686,1775055035160,-500.0,0.00011186,2]
[419251687,1775055035170,-500.0,0.00011186,2]
[419251688,1775055035180,-500.12779556,0.00011186,2]
[419251689,1775055035190,-500.0,0.00011186,2]
[419251690,1775055035200,-2345.32180081,0.00011186,2]
[419251691,1775055035209,-2345.32180081,0.00011186,2]
[419251692,1775055035218,-2345.32180081,0.00011186,2]
[419251693,1775055035228,-2345.32180081,0.00011186,2]
[419251694,1775055035238,-2345.32180081,0.00011186,2]
[419251695,1775055035247,-2345.32180081,0.00011186,2]
[419251696,1775055035257,-2345.32180081,0.00011186,2]
[419251697,1775055035266,-2345.32180081,0.00011186,2]
[419251698,1775055035280,-2345.32180081,0.00011186,2]
[419251699,1775055035291,-2345.32180081,0.00011186,2]
[419251700,1775055035301,-2345.32180081,0.00011186,2]
[419251701,1775055035311,-2345.32180081,0.00011186,2]
[419251702,1775055035321,-2345.32180081,0.00011186,2]
[419251703,1775055035330,-2345.32180081,0.00011186,2]
[419251704,1775055035339,-2345.32180081,0.00011186,2]
[419251705,1775055035349,-2345.32180081,0.00011186,2]
[419251706,1775055035358,-2345.32180081,0.00011186,2]
[419251707,1775055035368,-2345.32180081,0.00011186,2]
[419251708,1775055035377,-2345.32180081,0.00011186,2]
[419251709,1775055035387,-2345.32180081,0.00011186,2]
[419251710,1775055035396,-2345.32180081,0.00011186,2]
[419251711,1775055035406,-2345.32180081,0.00011186,2]
[419251712,1775055035415,-2345.32180081,0.00011186,2]
[419251713,1775055035424,-2345.32180081,0.00011186,2]
[419251714,1775055035434,-2345.32180081,0.00011186,2]
[419251715,1775055035443,-2345.32180081,0.00011186,2]
[419251716,1775055035452,-2345.32180081,0.00011186,2]
[419251717,1775055035462,-2345.32180081,0.00011186,2]
[419251718,1775055035472,-2345.32180081,0.00011186,2]
[419251719,1775055035482,-2345.32180081,0.00011186,2]
[419251720,1775055035492,-2345.32180081,0.00011186,2]
[419251721,1775055035502,-2345.32180081,0.00011186,2]
[419251722,1775055035512,-2345.32180081,0.00011186,2]
[419251723,1775055035521,-2345.32180081,0.00011186,2]
[419251724,1775055035531,-2345.32180081,0.00011186,2]
[419251725,1775055035541,-2345.32180081,0.00011186,2]
[419251726,1775055035551,-2345.32180081,0.00011186,2]
[419251727,1775055035561,-2345.32180081,0.00011186,2]
[419251728,1775055035571,-2345.32180081,0.00011186,2]
[419251729,1775055035581,-2213.08179802,0.00011186,2]
[419251730,1775055035591,-2213.08179802,0.00011186,2]
[419251731,1775055035601,-2213.08179802,0.00011186,2]
[419251732,1775055035611,-2213.08179802,0.00011186,2]
[419251733,1775055035621,-2213.08179802,0.00011186,2]
[419251734,1775055035630,-2213.08179802,0.00011186,2]
[419251735,1775055035640,-2213.08179802,0.00011186,2]
[419251736,1775055035650,-2213.08179802,0.00011186,2]
[419251737,1775055035659,-2213.08179802,0.00011186,2]
[419251738,1775055035669,-2213.08179802,0.00011186,2]
[419251739,1775055035679,-2213.08179802,0.00011186,2]
[419251740,1775055035688,-2213.08179802,0.00011186,2]
[419251741,1775055035698,-2213.08179802,0.00011186,2]
[419251742,1775055035707,-2213.08179802,0.00011186,2]
[419251743,1775055035717,-2213.08179802,0.00011186,2]
[419251744,1775055035727,-2213.08179802,0.00011186,2]
[419251745,1775055035736,-2213.08179799,0.00011186,2]
[419251746,1775055035746,-1516.8516926,0.00011186,2]
[419251747,1775055035756,-424207.75533407,0.00011187,2]
[419251748,1775055035770,-1100.0,0.00011187,2]
[419251749,1775055035786,-279.79428379,0.00011187,2]
[419251750,1775055035798,-735.86868897,0.00011187,2]
[419251751,1775055035814,-397.27249721,0.00011187,2]
[419251754,1775055038425,-322.07222032,0.00011177,2]
[419251755,1775055038436,-448.89158713,0.00011185,2]
[419251756,1775055038446,-187.97447261,0.00011185,2]
[419251757,1775055038455,-500.0,0.00011185,2]
[419251758,1775055038465,-167.84662718,0.00011185,2]
[419251759,1775055038475,-500.0,0.00011185,2]
[419251760,1775055038486,-500.0,0.00011185,2]
[419251761,1775055038496,-500.0,0.00011185,2]
[419251762,1775055038506,-500.0,0.00011185,2]
[419251763,1775055038516,-500.0,0.00011185,2]
[419251764,1775055038525,-500.0,0.00011185,2]
[419251765,1775055038535,-632.66398468,0.00011185,2]
[419251766,1775055038544,-500.0,0.00011185,2]
[419251767,1775055038554,-500.0,0.00011185,2]
[419251768,1775055038563,-292.73110808,0.00011185,2]
[419251769,1775055038575,-207.26889192,0.00011185,2]
[419251770,1775055038585,-460.09977628,0.00011185,2]
[419251771,1775055038598,-177.97781577,0.00011185,2]
[419251772,1775055038607,-335.68847805,0.00011185,2]
[419251773,1775055038619,-164.31152195,0.00011185,2]
[419251774,1775055038628,-977.15979584,0.00011187,2]
[419251775,1775055038645,-111940.39020408,0.00011187,2]
[419251776,1775055038656,-387.75502244,0.00011187,2]
[419251777,1775055038668,-847.0,0.00011187,2]
[419251778,1775055038679,-160108.94692499,0.00011187,2]
[419251779,1775055038706,-674.4909625,0.00011187,2]
[419251780,1775055038718,-6454.22897461,0.00011187,2]
[419251781,1775055038734,-484.73879994,0.00011187,2]
[419251782,1775055038746,-1064.40417485,0.00011187,2]
[419251783,1775055038762,-2411.93732997,0.00011187,2]
[419251784,1775055038773,-83139.77410323,0.00011187,2]
[419251951,1775055040742,-6600.0,0.00011187,2]
[419251998,1775055041372,-33576.29999996,0.00011187,2]
[419252002,1775055041427,-664612.18290355,0.00011187,2]
[419252004,1775055041436,-33017.9749,0.00011285,2]
[419252006,1775055041445,-5328.6287,0.00011285,2]
[419252008,1775055041455,-2500.0,0.00011285,2]
[419252010,1775055041465,-500.0,0.00011342,2]
[419252012,1775055041475,-153.68886787,0.00011378,2]
[419252014,1775055041486,-151.0,0.00011378,2]
[419252016,1775055041495,-151.0,0.00011378,2]
[419252018,1775055041505,-151.0,0.00011378,2]
[419252020,1775055041515,-500.0,0.00011378,2]
[419252022,1775055041524,-500.0,0.00011378,2]
[419252024,1775055041534,-500.0,0.00011378,2]
[419252026,1775055041544,-500.0,0.00011378,2]
[419252028,1775055041554,-500.0,0.00011378,2]
[419252030,1775055041564,-500.0,0.00011378,2]
[419252032,1775055041573,-500.0,0.00011378,2]
[419252034,1775055041583,-500.0,0.00011378,2]
[419252036,1775055041592,-500.0,0.00011378,2]
[419252038,1775055041601,-500.0,0.00011378,2]
[419252040,1775055041610,-500.0,0.00011378,2]
[419252042,1775055041619,-151.0,0.00011378,2]
[419252044,1775055041628,-151.0,0.00011378,2]
[419252046,1775055041637,-151.0,0.00011378,2]
[419252048,1775055041647,-151.0,0.00011378,2]
[419252050,1775055041656,-151.0,0.00011378,2]
[419252052,1775055041671,-151.0,0.00011378,2]
[419252055,1775055041680,-151.0,0.00011378,2]
[419252057,1775055041690,-151.0,0.00011378,2]
[419252059,1775055041700,-151.0,0.00011378,2]
[419252061,1775055041709,-151.0,0.00011378,2]
[419252063,1775055041719,-151.0,0.00011378,2]
[419252064,1775055041728,-151.0,0.00011378,2]
[419252066,1775055041740,-151.0,0.00011386,2]
[419252068,1775055041749,-442.54332135,0.00011388,2]
[419252071,1775055041759,-1000.0,0.00011396,2]
[419252073,1775055041770,-150.01618887,0.00011489,2]
[419252075,1775055041779,-206.34292365,0.00011489,2]
[419252077,1775055041789,-6332.86174511,0.00011489,2]
[419252079,1775055041798,-834.93572547,0.00011489,2]
[419252081,1775055041808,-11640.66419491,0.00011709,2]
[419252083,1775055041819,-1516.8516926,0.0001171,2]
[419252085,1775055041828,-250.0,0.00011755,2]
[419252087,1775055041837,-355.3905852,0.00011761,2]
[419252089,1775055041846,-150.0,0.000118,2]
[419252091,1775055041856,-155.384,0.00012064,2]
[419252092,1775055041865,-243775.884502,0.00012065,2]
[419252094,1775055041875,-10620.8206603,0.00012065,2]
[419252096,1775055041883,-178.2168563,0.00012065,2]
[419252098,1775055041893,-2071.1902571,0.00012065,2]
[419252100,1775055041902,-177812.9733451,0.00012065,2]
[419252102,1775055041912,-1502.1584003,0.00012065,2]
[419252104,1775055041923,-13401.5372439,0.00012065,2]
[419252106,1775055041932,-4123.0365798,0.00012066,2]
[419252109,1775055041942,-6963.6918865,0.00012066,2]
[419252110,1775055041951,-587.0,0.00012085,2]
[419252112,1775055041962,-2160.0,0.00012085,2]
[419252114,1775055041971,-151.0,0.00012122,2]
[419252116,1775055041982,-200.0,0.00012125,2]
[419252118,1775055041991,-200.0,0.00012125,2]
[419252120,1775055042001,-151.0,0.00012125,2]
[419252122,1775055042010,-200.0,0.00012125,2]
[419252124,1775055042019,-156.0,0.00012125,2]
[419252126,1775055042029,-156.0,0.00012125,2]
[419252128,1775055042038,-152.0,0.00012125,2]
[419252130,1775055042048,-500.0,0.00012125,2]
[419252132,1775055042058,-200.0,0.00012125,2]
[419252134,1775055042067,-1524.0,0.00012125,2]
[419252137,1775055042077,-500.0,0.00012137,2]
[419252139,1775055042087,-205.74,0.000122,2]
[419252141,1775055042096,-11640.66419491,0.00012233,2]
[419252142,1775055042106,-1516.8516926,0.00012234,2]
[419252144,1775055042116,-200.0,0.00012246,2]
[419252146,1775055042125,-200.0,0.00012246,2]
[419252148,1775055042134,-200.0,0.00012246,2]
[419252150,1775055042144,-200.0,0.00012246,2]
[419252153,1775055042153,-158.53,0.00012258,2]
[419252155,1775055042163,-200.0,0.00012369,2]
[419252156,1775055042172,-200.0,0.00012369,2]
[419252158,1775055042181,-200.0,0.00012369,2]
[419252160,1775055042190,-200.0,0.00012369,2]
[419252162,1775055042199,-200.0,0.0001244,2]
[419252164,1775055042210,-166.66,0.00012461,2]
[419252166,1775055042220,-200.0,0.00012492,2]
[419252168,1775055042230,-200.0,0.00012492,2]
[419252170,1775055042241,-200.0,0.00012492,2]
[419252172,1775055042250,-200.0,0.00012617,2]
[419252174,1775055042260,-200.0,0.00012617,2]
[419252176,1775055042270,-11640.66419491,0.00012757,2]
[419252178,1775055042279,-1516.8516926,0.00012757,2]
[419252180,1775055042288,-15522.14,0.00012802,2]
[419252182,1775055042298,-166.66,0.00012836,2]
[419252184,1775055042308,-273.88,0.00012877,2]
[419252186,1775055042318,-250.0,0.00013,2]
[419252188,1775055042328,-500.0,0.00013014,2]
[419252211,1775055042548,-285.76667138,0.0001306,2]
[419252213,1775055042558,-298.5809102,0.00013062,2]
[419252216,1775055042569,-753.62031437,0.00013064,2]
[419252218,1775055042581,-192.1834,0.000131,7]
[419252219,1775055042591,-510.0,0.00013111,2]
[419252221,1775055042603,-287.702352,0.0001314,2]
[419252223,1775055042612,-223.187279,0.0001314,2]
[419252225,1775055042621,-160.0,0.0001314,2]
[419252227,1775055042630,-160.0,0.0001314,2]
[419252229,1775055042640,-217.49703,0.0001314,2]
[419252231,1775055042650,-472.492908,0.0001314,2]
[419252233,1775055042660,-274.994061,0.0001314,2]
[419252235,1775055042670,-784.985817,0.0001314,2]
[419252237,1775055042679,-336.276869,0.0001314,2]
[419252239,1775055042688,-209.588049,0.0001314,2]